{"text_format":"3","workbook":"xlsx","n_sheets":2,"sheets":["Протокол ШЭ ВОШ по предмету","Лист2"],"not_rendered":{"defined_names":1},"read":"whole","date_system":"1900"}

{"sheet":"Протокол ШЭ ВОШ по предмету","index":0,"n_rows":58,"n_cols":15,"rows_kept":58}
["№","Фамилия","Имя","Отчество","Дата рождения","Пол","Участник с ОВЗ (да/нет)","Класс обучения","Класс участия","Балл","Максимальный балл","Статус","Призёр муниципального этапа прошлого года","ФИО учителя","Место работы учителя"]
[1,"Абдулла","Софья","Андреевна","2010-12-30","ж","нет",4,4,38,53,"Участник","нет","Садриева Аниса Хусаиновна","Муниципальное бюджетное общеобразовательное учреждение \"СОШ №29\" г.Нижнекамска  Республики Татарстан"]
[2,"Дементов","Данил","Алексеевич","2010-12-29","м","нет",4,4,13,{"$f":"$K$2","v":53},"Участник",{"$f":"$M$2","v":"нет"},"Садриева Аниса Хусаиновна","Муниципальное бюджетное общеобразовательное учреждение \"СОШ №29\" г.Нижнекамска  Республики Татарстан"]
[3,"Михайлова","Эльвина","Евгеньевна","2011-11-12","ж","нет",4,4,31,53,{"$f":"$L$2","v":"Участник"},"нет","Садриева Аниса Хусаиновна","Муниципальное бюджетное общеобразовательное учреждение \"СОШ №29\" г.Нижнекамска  Республики Татарстан"]
[4,"Можаев","Даниял","Константинович","2010-11-10","м","нет",4,4,24,53,"Участник","нет","Садриева Аниса Хусаиновна","Муниципальное бюджетное общеобразовательное учреждение \"СОШ №29\" г.Нижнекамска  Республики Татарстан"]
[5,"Мресова ","Диана","Сергеевна","2011-07-07","ж","нет",4,4,27,53,"Участник","нет","Садриева Аниса Хусаиновна","Муниципальное бюджетное общеобразовательное учреждение \"СОШ №29\" г.Нижнекамска  Республики Татарстан"]
[6,"Пестова","Арина","Максимовна","2011-04-26","ж","нет",4,4,33,53,"Участник","нет","Садриева Аниса Хусаиновна","Муниципальное бюджетное общеобразовательное учреждение \"СОШ №29\" г.Нижнекамска  Республики Татарстан"]
[7,"Кочкин","Богдан","Валерьевич","2010-12-11","м","нет",4,4,28,53,{"$f":"$L$7","v":"Участник"},"нет","Корычбаева Гузель Салимовна","Муниципальное бюджетное общеобразовательное учреждение \"СОШ №29\" г.Нижнекамска  Республики Татарстан"]
[8,"Гарталова","Эльвина","Сергеевна","2011-03-24","ж","нет",4,4,26,53,"Участник","нет","Корычбаева Гузель Салимовна","Муниципальное бюджетное общеобразовательное учреждение \"СОШ №29\" г.Нижнекамска  Республики Татарстан"]
[9,"Ялозюк","Эльвина","Сергеевна","2011-04-05","ж","нет",4,4,29,53,"Участник","нет","Корычбаева Гузель Салимовна","Муниципальное бюджетное общеобразовательное учреждение \"СОШ №29\" г.Нижнекамска  Республики Татарстан"]
[10,"Оловьева","Анна","Александровна","2011-01-06","ж","нет",4,4,25,53,"Участник","нет","Корычбаева Гузель Салимовна","Муниципальное бюджетное общеобразовательное учреждение \"СОШ №29\" г.Нижнекамска  Республики Татарстан"]
[11,"Пономарев","Роман","Юрьевич","2009-11-20","м","нет",5,5,32,63,"Участник","нет","Пахомова Гульшат Асхатовна","Муниципальное бюджетное общеобразовательное учреждение \"СОШ №29\" г.Нижнекамска  Республики Татарстан"]
[12,"Будылин","Савелий","Юрьевич","2009-11-24","м","нет",5,5,38,{"$f":"$K$12","v":63},"Участник","нет","Пахомова Гульшат Асхатовна","Муниципальное бюджетное общеобразовательное учреждение \"СОШ №29\" г.Нижнекамска  Республики Татарстан"]
[13,"Нигматзянова ","Сафия","Василовна","2010-02-09","ж","нет",5,5,22,63,"Участник","нет","Ризванова Фануса Минигалиевна","Муниципальное бюджетное общеобразовательное учреждение \"СОШ №29\" г.Нижнекамска  Республики Татарстан"]
[14,"Младшин","Ян","Яковлевич","2010-03-24","м","нет",5,5,18,63,"Участник","нет","Ризванова Фануса Минигалиевна","Муниципальное бюджетное общеобразовательное учреждение \"СОШ №29\" г.Нижнекамска  Республики Татарстан"]
[15,"Шапорева","Анастасия","Романовна","2010-08-24","ж","нет",5,5,41,63,"Участник","нет","Ризванова Фануса Минигалиевна","Муниципальное бюджетное общеобразовательное учреждение \"СОШ №29\" г.Нижнекамска  Республики Татарстан"]
[16,"Гафурова","Алина","Тимурджановна","2009-10-30","ж","нет",6,6,75,81,"Победитель ","нет","Чевачина Розалия Вакифовна","Муниципальное бюджетное общеобразовательное учреждение \"СОШ №29\" г.Нижнекамска  Республики Татарстан"]
[17,"Михайлов","Матвей","Вячеславович","2009-08-04","м","нет",6,6,30,{"$f":"$K$17","v":81},"Участник","нет","Ахметшина Марьям Валиахметовна","Муниципальное бюджетное общеобразовательное учреждение \"СОШ №29\" г.Нижнекамска  Республики Татарстан"]
[18,"Потапов","Тимур","Николаевич","2008-11-03","м","нет",6,6,41,81,"Участник","нет","Ахметшина Марьям Валиахметовна","Муниципальное бюджетное общеобразовательное учреждение \"СОШ №29\" г.Нижнекамска  Республики Татарстан"]
[19,"Ялозюк","Артем","Владиславович","2009-11-02","м","нет",6,6,43,81,"Участник","нет","Ахметшина Марьям Валиахметовна","Муниципальное бюджетное общеобразовательное учреждение \"СОШ №29\" г.Нижнекамска  Республики Татарстан"]
[20,"Матвеев","Владимир","Евгеньевич","2009-09-11","м","нет",6,6,28,81,"Участник","нет","Чевачина Розалия Вакифовна","Муниципальное бюджетное общеобразовательное учреждение \"СОШ №29\" г.Нижнекамска  Республики Татарстан"]
[21,"Зубрицкая","Аурика","Валерьевна","2009-08-23","ж","нет",6,6,37,81,"Участник","нет","Чевачина Розалия Вакифовна","Муниципальное бюджетное общеобразовательное учреждение \"СОШ №29\" г.Нижнекамска  Республики Татарстан"]
[22,"Шарпакова","Дарья","Владимировна","2009-01-15","ж","нет",6,6,39,81,"Участник","нет","Пахомова Гульшат Асхатовна","Муниципальное бюджетное общеобразовательное учреждение \"СОШ №29\" г.Нижнекамска  Республики Татарстан"]
[23,"Аблакатова","Валерия","Евгеньевна","2009-05-29","ж","нет",6,6,43,81,"Участник","нет","Пахомова Гульшат Асхатовна","Муниципальное бюджетное общеобразовательное учреждение \"СОШ №29\" г.Нижнекамска  Республики Татарстан"]
[24,"Гребенщикова","Ксения","Владиславовна","2008-03-24","ж","нет",7,7,42,83,"Участник","нет","Якупова Венера Бадуртдиновна","Муниципальное бюджетное общеобразовательное учреждение \"СОШ №29\" г.Нижнекамска  Республики Татарстан"]
[25,"Козин","Вадим","Михайлович","2007-11-09","м","нет",7,7,39,83,"Участник","нет","Якупова Венера Бадуртдиновна","Муниципальное бюджетное общеобразовательное учреждение \"СОШ №29\" г.Нижнекамска  Республики Татарстан"]
[26,"Парфёнова","Диана","Витальевна","2008-08-15","ж","нет",7,7,46,83,{"$f":"$L$26","v":"Участник"},{"$f":"$M$26","v":"нет"},"Пахомова Гульшат Асхатовна","Муниципальное бюджетное общеобразовательное учреждение \"СОШ №29\" г.Нижнекамска  Республики Татарстан"]
[27,"Иванов","Евгений","Олегович","2008-06-02","м","нет",7,7,33,83,"Участник","нет","Пахомова Гульшат Асхатовна","Муниципальное бюджетное общеобразовательное учреждение \"СОШ №29\" г.Нижнекамска  Республики Татарстан"]
[28,"Енизеркин","Данил","Евгеньевич","2007-06-19","м","нет",8,8,36,110,"Участник","нет","Ахметшина Марьям Валиахметовна","Муниципальное бюджетное общеобразовательное учреждение \"СОШ №29\" г.Нижнекамска  Республики Татарстан"]
[29,"Романов ","Кирилл","Русланович","2007-04-24","м","нет",8,8,53,{"$f":"$K$29","v":110},"Участник","нет","Евсеева Фания Насиховна","Муниципальное бюджетное общеобразовательное учреждение \"СОШ №29\" г.Нижнекамска  Республики Татарстан"]
[30,"Роменская","Екатерина","Олеговна","2007-05-11","ж","нет",8,8,32,110,"Участник","нет","Евсеева Фания Насиховна","Муниципальное бюджетное общеобразовательное учреждение \"СОШ №29\" г.Нижнекамска  Республики Татарстан"]
[31,"Пономарева","Полина","Юрьевна","2007-10-12","ж","нет",8,8,40,110,"Участник","нет","Евсеева Фания Насиховна","Муниципальное бюджетное общеобразовательное учреждение \"СОШ №29\" г.Нижнекамска  Республики Татарстан"]
[32,"Ковалев","Данил","Станиславович","2007-02-23","м","нет",8,8,39,110,"Участник","нет","Евсеева Фания Насиховна","Муниципальное бюджетное общеобразовательное учреждение \"СОШ №29\" г.Нижнекамска  Республики Татарстан"]
[33,"Трушов","Никита","Игоревич","2007-02-19","м","нет",8,8,47,110,"Участник","нет","Евсеева Фания Насиховна","Муниципальное бюджетное общеобразовательное учреждение \"СОШ №29\" г.Нижнекамска  Республики Татарстан"]
[34,"Долганова","Дарья","Евгеньевна","2007-05-25","ж","нет",8,8,39,110,"Участник","нет","Евсеева Фания Насиховна","Муниципальное бюджетное общеобразовательное учреждение \"СОШ №29\" г.Нижнекамска  Республики Татарстан"]
[35,"Бурова","Кристина","Константиновна","2006-12-21","ж","нет",9,9,24,105,"Участник","нет","Чевачина Розалия Вакифовна","Муниципальное бюджетное общеобразовательное учреждение \"СОШ №29\" г.Нижнекамска  Республики Татарстан"]
[36,"Шаронова","Александра","Сергеевна","2005-12-02","ж","нет",{"$f":"H36","v":9},9,18,{"$f":"$K$36","v":105},"Участник","нет","Чевачина Розалия Вакифовна","Муниципальное бюджетное общеобразовательное учреждение \"СОШ №29\" г.Нижнекамска  Республики Татарстан"]
[37,"Мельникова","Карина","Александровна","2006-09-20","ж","нет",9,9,32,105,"Участник","нет","Чевачина Розалия Вакифовна","Муниципальное бюджетное общеобразовательное учреждение \"СОШ №29\" г.Нижнекамска  Республики Татарстан"]
[38,"Дорошенко","Артем","Владиславович","2006-04-30","м","нет",9,9,29,105,"Участник","нет","Чевачина Розалия Вакифовна","Муниципальное бюджетное общеобразовательное учреждение \"СОШ №29\" г.Нижнекамска  Республики Татарстан"]
[39,"Дорошенко","Вадим","Владиславович","2006-04-30","м","нет",9,9,44,105,"Участник","нет","Чевачина Розалия Вакифовна","Муниципальное бюджетное общеобразовательное учреждение \"СОШ №29\" г.Нижнекамска  Республики Татарстан"]
[40,"Ромашенко","Виктория","Евгеньевна","2006-08-18","ж","нет",9,9,16,105,"Участник","нет","Чевачина Розалия Вакифовна","Муниципальное бюджетное общеобразовательное учреждение \"СОШ №29\" г.Нижнекамска  Республики Татарстан"]
[41,"Соловьева","Дарья","Александровна","2006-09-21","ж","нет",9,9,21,105,"Участник","нет","Ризванова Фануса Минигалиевна","Муниципальное бюджетное общеобразовательное учреждение \"СОШ №29\" г.Нижнекамска  Республики Татарстан"]
[42,"Гордеева","Кристина","Викторовна","2006-05-22","ж","нет",9,9,40,105,"Участник","нет","Ризванова Фануса Минигалиевна","Муниципальное бюджетное общеобразовательное учреждение \"СОШ №29\" г.Нижнекамска  Республики Татарстан"]
[43,"Ефимова","Виктория","Вячеславовна","2006-06-08","ж","нет",9,9,24,105,"Участник","нет","Ризванова Фануса Минигалиевна","Муниципальное бюджетное общеобразовательное учреждение \"СОШ №29\" г.Нижнекамска  Республики Татарстан"]
[44,"Гилязева","Нэля","Артуровна","2005-12-04","ж","нет",9,9,29,105,"Участник","нет","Ризванова Фануса Минигалиевна","Муниципальное бюджетное общеобразовательное учреждение \"СОШ №29\" г.Нижнекамска  Республики Татарстан"]
[45,"Тузеева ","Анастасия","Юрьевна","2005-08-26","ж","нет",10,10,62,103,"Участник","нет","Евсеева Фания Насиховна","Муниципальное бюджетное общеобразовательное учреждение \"СОШ №29\" г.Нижнекамска  Республики Татарстан"]
[46,"Гафурова","Самира","Тимурджановна","2005-05-09","ж",{"$f":"$G$45","v":"нет"},{"$f":"H46","v":10},10,95,{"$f":"$K$46","v":103},"Победитель ","Да","Гурьева Лейсан Сулеймановна","Муниципальное бюджетное общеобразовательное учреждение \"СОШ №29\" г.Нижнекамска  Республики Татарстан"]
[47,"Буева","Анастасия","Ивановна","2004-12-17","ж","нет",10,10,43,103,"Участник",{"$f":"$M$40","v":"нет"},"Гурьева Лейсан Сулеймановна","Муниципальное бюджетное общеобразовательное учреждение \"СОШ №29\" г.Нижнекамска  Республики Татарстан"]
[48,"Есина","Татьяна","Ивановна","2005-10-14","ж","нет",10,10,67,103,"Участник","нет","Гурьева Лейсан Сулеймановна","Муниципальное бюджетное общеобразовательное учреждение \"СОШ №29\" г.Нижнекамска  Республики Татарстан"]
[49,"Каранаева","Полина","Евгеньевна","2005-07-11","ж","нет",10,10,53,103,"Участник","нет","Евсеева Фания Насиховна","Муниципальное бюджетное общеобразовательное учреждение \"СОШ №29\" г.Нижнекамска  Республики Татарстан"]
[50,"Кирилов","Илья","Владиславович","2005-02-20","м","нет",10,10,68,103,"Участник","нет","Евсеева Фания Насиховна","Муниципальное бюджетное общеобразовательное учреждение \"СОШ №29\" г.Нижнекамска  Республики Татарстан"]
[51,"Перескокова","Анастасия","Константиновна","2005-01-16","ж","нет",10,10,45,103,"Участник","нет","Евсеева Фания Насиховна","Муниципальное бюджетное общеобразовательное учреждение \"СОШ №29\" г.Нижнекамска  Республики Татарстан"]
[52,"Иванов","Роман","Алексеевич","2004-11-30","м",{"$f":"$G$52","v":"нет"},11,11,81,107,"Победитель ","нет","Чевачина Розалия Вакифовна","Муниципальное бюджетное общеобразовательное учреждение \"СОШ №29\" г.Нижнекамска  Республики Татарстан"]
[52,"Клинова","Ксения","Сергеевна","2004-09-02","ж","нет",{"$f":"H53","v":11},11,52,{"$f":"$K$53","v":107},"Участник","нет","Чевачина Розалия Вакифовна","Муниципальное бюджетное общеобразовательное учреждение \"СОШ №29\" г.Нижнекамска  Республики Татарстан"]
[54,"Меркулова","Дарина","Игоревна","2004-04-21","ж","нет",11,11,61,107,{"$f":"$L$41","v":"Участник"},"нет","Чевачина Розалия Вакифовна","Муниципальное бюджетное общеобразовательное учреждение \"СОШ №29\" г.Нижнекамска  Республики Татарстан"]
[54,"Северьянова","Анна","Сергеевна","2004-02-25","ж","нет",11,11,6,107,"Участник","нет","Чевачина Розалия Вакифовна","Муниципальное бюджетное общеобразовательное учреждение \"СОШ №29\" г.Нижнекамска  Республики Татарстан"]
[55,"Сизинцева","Арина","Сергеевна","2004-05-23","ж","нет",11,11,52,107,"Участник","нет","Чевачина Розалия Вакифовна","Муниципальное бюджетное общеобразовательное учреждение \"СОШ №29\" г.Нижнекамска  Республики Татарстан"]
[56,"Тюменцева","Екатерина","Алексеевна","2004-01-08","ж","нет",11,11,36,107,"Участник","нет","Чевачина Розалия Вакифовна","Муниципальное бюджетное общеобразовательное учреждение \"СОШ №29\" г.Нижнекамска  Республики Татарстан"]

{"sheet":"Лист2","index":1,"n_rows":3,"n_cols":7,"rows_kept":3}
["м",null,"Победитель",null,"да",null,"Победитель"]
["ж",null,"Призер",null,"нет",null,"Призер"]
[null,null,"Участник"]